Workbook

Sheet Contents
C2: Contents
F3: Colour Codes | K3: File Name: | M3: =IFERROR(File_name(),"") -> 
C4: Demand and Solar | G4: Inputs | I4: 1234567890
D5: Demand | G5: Section Titles | I5: TITLE ROW | K5: Last Save Date | M5: =IFERROR(lastsaved(),"") -> 
D6: Solar Supply | G6: Sum Column | I6: 1000000000
G7: True or 1 | I7: =1=1 -> TRUE | K7: Last Save By | M7: =IFERROR(last_save_by(),"") -> 
C8: Battery Costs | G8: False or 0 | I8: =1=2 -> FALSE
D9: Production | G9: Other Sheet Links | I9: |||||||||||||||||||
D10: Capital Expenditures
D11: Operating Expense
D12: Carrying Charges
C14: Detailed LCOE Calculator
D15: Production
D16: Real LCOE
D17: Carrying Charge Analysis
D18: Capital Expenditures
D19: Operating Expense
D20: Carrying Charges
D21: LCOE Calculation
D22: Financing Assumptions

Sheet Demand and Solar
B2: Demand
E3: 1 | F3: 2 | G3: 3 | H3: 4 | I3: 5 | J3: 6 | K3: 7 | L3: 8 | M3: 9 | N3: 10 | O3: 11 | P3: 12 | Q3: 13 | R3: 14 | S3: 15 | T3: 16 | U3: 17 | V3: 18 | W3: 19 | X3: 20 | Y3: 21 | Z3: 22 | AA3: 23 | AB3: 24
C4: Load | D4: MW | J4: 100 | K4: 100 | L4: 100 | M4: 100 | N4: 100 | O4: 100 | P4: 100 | Q4: 100 | R4: 100 | S4: 100 | T4: 100 | U4: 100
C5: Solar | D5: MW | M5: 100 | N5: 100 | O5: 100 | P5: 100 | Q5: 100 | R5: 100
C6: Non-Solar Need | D6: MW | J6: =J4-J5 -> 100 | K6: =K4-K5 -> 100 | L6: 100 | M6: 0 | N6: =N4-N5 -> 0 | O6: =O4-O5 -> 0 | P6: =P4-P5 -> 0 | Q6: =Q4-Q5 -> 0 | R6: =R4-R5 -> 0 | S6: =S4-S5 -> 100 | T6: =T4-T5 -> 100 | U6: =U4-U5 -> 100
B8: Solar Supply
E9: =E3 -> 1 | F9: =F3 -> 2 | G9: 3 | H9: 4 | I9: 5 | J9: 6 | K9: 7 | L9: 8 | M9: 9 | N9: 10 | O9: 11 | P9: 12 | Q9: 13 | R9: 14 | S9: 15 | T9: 16 | U9: 17 | V9: =V3 -> 18 | W9: 19 | X9: 20 | Y9: 21 | Z9: 22 | AA9: 23 | AB9: 24
C10: Solar | E10: =E5 -> 0 | F10: =F5 -> 0 | G10: 0 | H10: 0 | I10: 0 | J10: 0 | K10: 0 | L10: 0 | M10: 100 | N10: 100 | O10: 100 | P10: 100 | Q10: 100 | R10: 100 | S10: 0 | T10: 0 | U10: 0 | V10: =V5 -> 0 | W10: 0 | X10: 0 | Y10: 0 | Z10: 0 | AA10: 0 | AB10: 0
C11: Non-Solar Need | E11: =E6 -> 0 | F11: =F6 -> 0 | G11: 0 | H11: 0 | I11: 0 | J11: 100 | K11: 100 | L11: 100 | M11: 0 | N11: 0 | O11: 0 | P11: 0 | Q11: 0 | R11: 0 | S11: 100 | T11: 100 | U11: 100 | V11: =V6 -> 0 | W11: 0 | X11: 0 | Y11: 0 | Z11: 0 | AA11: 0 | AB11: 0
E14: =E9 -> 1 | F14: =F9 -> 2 | G14: 3 | H14: 4 | I14: 5 | J14: 6 | K14: 7 | L14: 8 | M14: 9 | N14: 10 | O14: 11 | P14: 12 | Q14: 13 | R14: 14 | S14: 15 | T14: 16 | U14: 17 | V14: 18 | W14: 19 | X14: 20 | Y14: 21 | Z14: 22 | AA14: 23 | AB14: 24
C15: Solar for Demand | E15: =E10 -> 0 | F15: =F10 -> 0 | G15: 0 | H15: 0 | I15: 0 | J15: 0 | K15: 0 | L15: 0 | M15: 100 | N15: 100 | O15: 100 | P15: 100 | Q15: 100 | R15: 100 | S15: 0 | T15: 0 | U15: 0 | V15: 0 | W15: 0 | X15: 0 | Y15: 0 | Z15: 0 | AA15: 0 | AB15: 0
C16: Solar for Charging | E16: =E10 -> 0 | F16: =F10 -> 0 | G16: 0 | H16: 0 | I16: 0 | J16: 0 | K16: 0 | L16: 0 | M16: 100 | N16: 100 | O16: 100 | P16: 100 | Q16: 100 | R16: 100 | S16: 0 | T16: 0 | U16: 0 | V16: 0 | W16: 0 | X16: 0 | Y16: 0 | Z16: 0 | AA16: 0 | AB16: 0
C17: Battery Discharge | E17: =E11 -> 0 | F17: =F11 -> 0 | G17: 0 | H17: 0 | I17: 0 | J17: 100 | K17: 100 | L17: 100 | M17: 0 | N17: 0 | O17: 0 | P17: 0 | Q17: 0 | R17: 0 | S17: 100 | T17: 100 | U17: 100 | V17: 0 | W17: 0 | X17: 0 | Y17: 0 | Z17: 0 | AA17: 0 | AB17: 0
B21: s
K23: How do we fill in the red area
K38: Fill in with extra solar and use battery to move

Sheet LCOE Analysis
H1: Fuel Cost/MMBTU | I1: 12
E3: Load Required | F3: Solar for Load | G3: Battery | H3: Added Solar to Charge Battery | I3: Thermal for Non Solar | J3: All Thermal | K3: Solar + Battery | L3: Solar + Thermal
C4: Real LCOE - USD/MWH | F4: =F59 -> 46.45165506 | J4: =J59 -> 100.0773811 | K4: =K59 -> 142.7637869 | L4: =L59 -> 81.14837411
B6: Production
C7: Load for Each Hour | D7: MW | E7: 100
C8: Solar Hours | D8: Hrs per Day | E8: 6
C9: Solar MWH | D9: MWH per Day | E9: =E7*E8 -> 600
C11: Battery Discharge Hours | D11: Hrs per Day | E11: 4
C12: Total Hours of Electricity | D12: Hrs per Day | E12: =E8+E11 -> 10
C14: Round Trip Efficiency of Battery | D14: % | G14: =Sensitivity!J19 -> 0.8
C15: Depth of Discharge | D15: % | G15: =Sensitivity!K19 -> 0.9
C17: MW of Capacity | F17: =E7 -> 100 | G17: =E7 -> 100 | H17: =F17/(G14*G15) -> 138.8888889 | I17: =E7 -> 100 | J17: =I17 -> 100
C18: Percent of Day (Capacity Factor) | D18: % | F18: =E9/24/E7 -> 0.25 | G18: =E11/24 -> 0.1666666667 | H18: =G18 -> 0.1666666667 | I18: =H18 -> 0.1666666667 | J18: =E12/24 -> 0.4166666667
C19: Annual Yield (CF x 8760) | D19: MWH/MWp | F19: =F18*8760 -> 2190 | G19: =G18*8760 -> 1460 | H19: =H18*8760 -> 1460 | I19: =I18*8760 -> 1460 | J19: =J18*8760 -> 3650
C20: Annual Energy | D20: MWH | F20: =F19*F17 -> 219000 | G20: =G19*G17 -> 146000 | H20: 202777.7778 | I20: 146000 | J20: 365000
C21: Storage Hours | D21: Hours | G21: =E11 -> 4
C22: Total Battery Capacity Storage | D22: MWH | G22: =G21*G17 -> 400
B24: Capital Expenditures
C25: Cost per kW | D25: USD per kW | F25: =Sensitivity!L19 -> 850 | H25: =F25 -> 850 | I25: =J25 -> 800 | J25: 800
C26: Cost per kWh | D26: USD per kWh | G26: =Sensitivity!D19 -> 350
C28: Capital Expenditure to LCOE Calculator | D28: USD | F28: =F25*F17*1000+F26*F22*1000 -> 85000000 | G28: =G25*G17*1000+G26*G22*1000 -> 140000000 | H28: 118055555.6 | I28: 80000000 | J28: 80000000 | K28: =G28+H28+F28 -> 343055555.6 | L28: =F28+I28 -> 165000000
B30: Operating Expense
C31: Operating Expense Percent | D31: % | G31: =Sensitivity!G19 -> 0.02
C32: Fixed O&M Expense | D32: USD/kW-yr | F32: =Sensitivity!M19 -> 15 | H32: =F32 -> 15 | I32: 6 | J32: 6
C33: Total Fixed O&M Expense per Year | D33: USD/Year | F33: =F17*F32*1000 -> 1500000 | G33: =G31*G28 -> 2800000 | H33: =H17*H32*1000 -> 2083333.333 | I33: =I17*I32*1000 -> 600000 | J33: =J17*J32*1000 -> 600000
C35: Heat Rate for Thermal | D35: MMBTU/MWH | I35: 6.5 | J35: 6.5
C36: Fuel Cost/MMBTU | D36: USD/MMBTU | I36: =I1 -> 12 | J36: =I1 -> 12
C37: Fuel Cost/MWH | D37: USD/MWH | I37: =I35*I36 -> 78 | J37: =J35*J36 -> 78
C38: Total Fuel Cost | D38: USD/Year | I38: =I37*I20 -> 11388000 | J38: =J37*J20 -> 28470000
C40: Total O&M Cost to LCOE Calculator | D40: USD | F40: =F33+F38 -> 1500000 | G40: =G33+G38 -> 2800000 | H40: =H33+H38 -> 2083333.333 | I40: =I33+I38 -> 11988000 | J40: =J33+J38 -> 29070000
C41: O&M Cost Adjusted for Degradation | D41: USD | F41: ='Detailed LCOE Calculator'!G61 -> 1569470.738 | G41: ='Detailed LCOE Calculator'!H61 -> 3075943.117 | H41: ='Detailed LCOE Calculator'!I61 -> 2179820.47 | I41: ='Detailed LCOE Calculator'!J61 -> 11988000 | J41: ='Detailed LCOE Calculator'!K61 -> 29070000 | K41: =F41+G41+H41 -> 6825234.325 | L41: =F41+I41 -> 13557470.74
B43: Carrying Charges
C44: Life | D44: yrs | F44: =Sensitivity!N19 -> 20 | G44: =Sensitivity!E19 -> 9 | H44: =F44 -> 20 | I44: 25 | J44: 25
C45: Degradation | D45: % | F45: 0.005 | G45: =Sensitivity!F19 -> 0.02 | H45: 0.005 | I45: 0 | J45: 0
C46: Tax Life | F46: 5 | G46: 5 | H46: 5 | I46: 15 | J46: 15
C47: Income Tax Rate | D47: % | F47: 0.3 | G47: =F47 -> 0.3 | H47: =J47 -> 0.3 | I47: =J47 -> 0.3 | J47: =G47 -> 0.3
C48: Variable Declining Balance Factor (1-St Line) | F48: 2 | G48: 2 | H48: 2 | I48: 2 | J48: 2
C49: Debt to Captial | D49: % | F49: =Sensitivity!I19 -> 0.5 | G49: =F49 -> 0.5 | H49: =G49 -> 0.5 | I49: 0.5 | J49: 0.5
C50: Target Equity IRR | D50: % | F50: =Sensitivity!H19 -> 0.1 | G50: =F50 -> 0.1 | H50: 0.1 | I50: 0.1 | J50: 0.1
C51: Cost of Debt | D51: % | F51: 0.04 | G51: =F51 -> 0.04 | H51: 0.04 | I51: 0.04 | J51: 0.04
C52: Inflation | D52: % | F52: 0.02 | G52: =F52 -> 0.02 | H52: 0.02 | I52: 0.02 | J52: 0.02
C54: Real Capital Recovery from LCOE Calculator | D54: USD per year | F54: ='Detailed LCOE Calculator'!G39 -> 8603441.72 | G54: ='Detailed LCOE Calculator'!H39 -> 24730881.57 | H54: ='Detailed LCOE Calculator'!I39 -> 11949224.61 | I54: ='Detailed LCOE Calculator'!J39 -> 7458244.092 | J54: ='Detailed LCOE Calculator'!K39 -> 7458244.092 | K54: =F54+G54+H54 -> 45283547.9 | L54: =F54+I54 -> 16061685.81
C56: Total Annual Production | D56: MWH/yr | F56: =F20 -> 219000 | G56: =G20 -> 146000 | H56: 202777.7778 | I56: 146000 | J56: 365000 | K56: =F56+G56 -> 365000 | L56: =J56 -> 365000
C58: Total Cost | D58: USD per year | F58: =F54+F41 -> 10172912.46 | G58: =G54+G41 -> 27806824.69 | H58: =H54+H41 -> 14129045.08 | I58: =I54+I41 -> 19446244.09 | J58: =J54+J41 -> 36528244.09 | K58: =K54+K41 -> 52108782.23 | L58: =L54+L41 -> 29619156.55
C59: Cost/MWH | D59: USD/MWH | F59: =F58/F56 -> 46.45165506 | G59: 190.4577034 | H59: 69.67748259 | I59: 133.1934527 | J59: 100.0773811 | K59: 142.7637869 | L59: 81.14837411

Sheet Detailed LCOE Calculator
G2: Solar for Load | H2: Battery | I2: Solar for Charge | J2: Thermal for Storage | K2: All Thermal
B3: Production
B4: Real LCOE | G4: =G78 -> 40.27294531 | H4: =H78 -> 175.950969 | I4: =I78 -> 60.40941797 | J4: =J78 -> 123.7140558 | K4: =K78 -> 96.2856223
C6: Annual Production | E6: Quantity | G6: ='LCOE Analysis'!F20 -> 219000 | H6: ='LCOE Analysis'!G20 -> 146000 | I6: ='LCOE Analysis'!H20 -> 202777.7778 | J6: ='LCOE Analysis'!I20 -> 146000 | K6: ='LCOE Analysis'!J20 -> 365000
C7: Total Capital Cost | E7: USD | G7: ='LCOE Analysis'!F28 -> 85000000 | H7: ='LCOE Analysis'!G28 -> 140000000 | I7: ='LCOE Analysis'!H28 -> 118055555.6 | J7: ='LCOE Analysis'!I28 -> 80000000 | K7: ='LCOE Analysis'!J28 -> 80000000
B9: Carrying Charge Analysis
C10: Economic Life | E10: Yr | G10: ='LCOE Analysis'!F44 -> 20 | H10: ='LCOE Analysis'!G44 -> 9 | I10: ='LCOE Analysis'!H44 -> 20 | J10: ='LCOE Analysis'!I44 -> 25 | K10: ='LCOE Analysis'!J44 -> 25
C11: Tax Life | E11: Yr | G11: ='LCOE Analysis'!F46 -> 5 | H11: ='LCOE Analysis'!G46 -> 5 | I11: ='LCOE Analysis'!H46 -> 5 | J11: ='LCOE Analysis'!I46 -> 15 | K11: ='LCOE Analysis'!J46 -> 15
C12: Income Tax Rate | E12: % | G12: ='LCOE Analysis'!F47 -> 0.3 | H12: =G12 -> 0.3 | I12: =H12 -> 0.3 | J12: =I12 -> 0.3 | K12: =J12 -> 0.3
C13: Variable Declining Balance Factor (1-St Line) | E13: Factor | G13: ='LCOE Analysis'!F48 -> 2 | H13: =G13 -> 2 | I13: =H13 -> 2 | J13: 2 | K13: 2
C14: Debt to Captial | E14: % | G14: ='LCOE Analysis'!F49 -> 0.5 | H14: =G14 -> 0.5 | I14: 0.5 | J14: 0.5 | K14: 0.5
C15: Target Equity IRR | E15: % | G15: ='LCOE Analysis'!F50 -> 0.1 | H15: ='LCOE Analysis'!G50 -> 0.1 | I15: ='LCOE Analysis'!H50 -> 0.1 | J15: ='LCOE Analysis'!I50 -> 0.1 | K15: ='LCOE Analysis'!J50 -> 0.1
C16: Cost of Debt | E16: % | G16: ='LCOE Analysis'!F51 -> 0.04 | H16: ='LCOE Analysis'!G51 -> 0.04 | I16: ='LCOE Analysis'!H51 -> 0.04 | J16: ='LCOE Analysis'!I51 -> 0.04 | K16: ='LCOE Analysis'!J51 -> 0.04
C17: After Cost of Debt | E17: % | G17: =G16*(1-G12) -> 0.028 | H17: =H16*(1-H12) -> 0.028 | I17: =I16*(1-I12) -> 0.028 | J17: =J16*(1-J12) -> 0.028 | K17: =K16*(1-K12) -> 0.028
C18: WACC | E18: % | G18: =G17*G14+G15*(1-G14) -> 0.064 | H18: =H17*H14+H15*(1-H14) -> 0.064 | I18: =I17*I14+I15*(1-I14) -> 0.064 | J18: =J17*J14+J15*(1-J14) -> 0.064 | K18: =K17*K14+K15*(1-K14) -> 0.064
C20: Required Project IRR | E20: % p.a. | G20: =G18 -> 0.064 | H20: =H18 -> 0.064 | I20: =I18 -> 0.064 | J20: =J18 -> 0.064 | K20: =K18 -> 0.064
B21: Capital Expenditures
C23: Inflation | E23: % p.a. | G23: ='LCOE Analysis'!F52 -> 0.02 | H23: =G23 -> 0.02 | I23: =H23 -> 0.02 | J23: 0.02 | K23: 0.02
C24: Degradation | E24: % p.a. | G24: 0.005 | H24: ='LCOE Analysis'!G45 -> 0.02 | I24: ='LCOE Analysis'!H45 -> 0.005 | J24: 0 | K24: 0
C25: Tax Shield Value | E25: % | G25: =tax_dep_shield(G11,G13,G20,G12) -> 0.2455680195 | H25: =tax_dep_shield(H11,H13,H20,H12) -> 0.2455680195 | I25: =tax_dep_shield(I11,I13,I20,I12) -> 0.2455680195 | J25: =tax_dep_shield(J11,J13,J20,J12) -> 0.1965521858 | K25: =tax_dep_shield(K11,K13,K20,K12) -> 0.1965521858
B27: Operating Expense
C28: Levelizing Factor with PMT | E28: % | G28: =PMT(G20,G10,-1) -> 0.09003679031 | H28: =PMT(H20,H10,-1) -> 0.1495922499 | I28: =PMT(I20,I10,-1) -> 0.09003679031 | J28: =PMT(J20,J10,-1) -> 0.08122448609 | K28: =PMT(K20,K10,-1) -> 0.08122448609
C29: Capital Recovery Pre-Tax | E29: USD/yr | G29: =G28*G7 -> 7653127.176 | H29: =H28*H7 -> 20942914.98 | I29: =I28*I7 -> 10629343.3 | J29: =J28*J7 -> 6497958.888 | K29: =K28*K7 -> 6497958.888
C31: Capital Cost Recovery Base | E31: USD/yr | G31: =G28*G7 -> 7653127.176 | H31: =H28*H7 -> 20942914.98 | I31: =I28*I7 -> 10629343.3 | J31: =J28*J7 -> 6497958.888 | K31: =K28*K7 -> 6497958.888
C32: IRR Adjusted for Degradation | E32: % p.a. | G32: =(1+G20)/(1-G24)-1 -> 0.06934673367 | H32: 0.08571428571 | I32: 0.06934673367 | J32: 0.064 | K32: 0.064
C33: Nominal Levelizing Factor with Degradation | E33: % p.a. | G33: =PMT(G32,G10,-1) -> 0.09391419613 | H33: =PMT(H32,H10,-1) -> 0.1639039848 | I33: =PMT(I32,I10,-1) -> 0.09391419613 | J33: =PMT(J32,J10,-1) -> 0.08122448609 | K33: =PMT(K32,K10,-1) -> 0.08122448609
C34: PMT Factor Adjusted for Paying Taxes | E34: % p.a. | G34: =G33/(1-G12) -> 0.1341631373 | H34: =H33/(1-H12) -> 0.2341485497 | I34: =I33/(1-I12) -> 0.1341631373 | J34: =J33/(1-J12) -> 0.1160349801 | K34: =K33/(1-K12) -> 0.1160349801
C35: PMT Factor Adjust for Tax Depreciation Shield | E35: % p.a. | G35: =G34*(1-G25) -> 0.1012169614 | H35: =H34*(1-H25) -> 0.1766491541 | I35: =I34*(1-I25) -> 0.1012169614 | J35: =J34*(1-J25) -> 0.09322805116 | K35: =K34*(1-K25) -> 0.09322805116
C37: Construction Timing | E37: Year | G37: 1 | H37: 1 | I37: 1 | J37: 1 | K37: 1
C38: Construction Factor | E38: Factor | G38: =FV(G20,G37,-1/G37) -> 1 | H38: 1 | I38: 1 | J38: 1 | K38: 1
C39: Capital Cost Recovery with Degradation | E39: USD/yr | G39: =G35*G7*G38 -> 8603441.72 | H39: =H35*H7*H38 -> 24730881.57 | I39: =I35*I7*I38 -> 11949224.61 | J39: =J35*J7*J38 -> 7458244.092 | K39: =K35*K7*K38 -> 7458244.092
B40: Carrying Charges
C42: Real IRR | E42: % p.a. | G42: =(1+G20)/(1+G23)-1 -> 0.0431372549 | H42: 0.0431372549 | I42: 0.0431372549 | J42: 0.0431372549 | K42: 0.0431372549
C43: Levelizing Factor with Real IRR | E43: % p.a. | G43: =(1+G42)/(1-G24)-1 -> 0.04837915066 | H43: 0.06442577031 | I43: 0.04837915066 | J43: 0.0431372549 | K43: 0.0431372549
C44: Real IRR Adjusted for Degradation | E44: % p.a. | G44: =(1+G42)/(1-G24)-1 -> 0.04837915066 | H44: 0.06442577031 | I44: 0.04837915066 | J44: 0.0431372549 | K44: 0.0431372549
C45: Levelizing Factor with Real IRR and Degradation | E45: % p.a. | G45: =PMT(G44,G10,-1) -> 0.07914350104 | H45: =PMT(H44,H10,-1) -> 0.1498670453 | I45: =PMT(I44,I10,-1) -> 0.07914350104 | J45: =PMT(J44,J10,-1) -> 0.0661520329 | K45: =PMT(K44,K10,-1) -> 0.0661520329
C47: Adj for Tax on Inc (Divide by (1-t)) | E47: % | G47: =G45/(1-G12) -> 0.1130621443 | H47: =H45/(1-H12) -> 0.214095779 | I47: =I45/(1-I12) -> 0.1130621443 | J47: =J45/(1-J12) -> 0.09450290414 | K47: =K45/(1-K12) -> 0.09450290414
C48: Adj for Tax Shield | E48: % | G48: =G47*(1-G25) -> 0.08529769748 | H48: 0.1615207026 | I48: 0.08529769748 | J48: 0.07592815176 | K48: 0.07592815176
C50: Construction Real | E50: Factor | G50: 1 | H50: 1 | I50: 1 | J50: 1 | K50: 1
C51: Final Real Capital Cost Recovery with Degradation | E51: USD/yr | G51: =G48*G7 -> 7250304.285 | H51: =H48*H7 -> 22612898.36 | I51: =I48*I7 -> 10069867.06 | J51: =J48*J7 -> 6074252.141 | K51: =K48*K7 -> 6074252.141
C54: Total Operating Costs | E54: USD/yr | G54: ='LCOE Analysis'!F40 -> 1500000 | H54: ='LCOE Analysis'!G40 -> 2800000 | I54: ='LCOE Analysis'!H40 -> 2083333.333 | J54: ='LCOE Analysis'!I40 -> 11988000 | K54: ='LCOE Analysis'!J40 -> 29070000
C56: Inflation Factor for Nominal Cost | E56: Factor | G56: =PV(G42,G10,-1)/PV(G20,G10,-1) -> 1.190328167 | H56: =PV(H42,H10,-1)/PV(H20,H10,-1) -> 1.096536815 | I56: =PV(I42,I10,-1)/PV(I20,I10,-1) -> 1.190328167 | J56: =PV(J42,J10,-1)/PV(J20,J10,-1) -> 1.227845654 | K56: =PV(K42,K10,-1)/PV(K20,K10,-1) -> 1.227845654
C57: Degradation Factor for Nominal Cost | E57: Factor | G57: =PV(G42,G10,-1)/PV(G32,G10,-1) -> 1.241589272 | H57: =PV(H42,H10,-1)/PV(H32,H10,-1) -> 1.201444284 | I57: =PV(I42,I10,-1)/PV(I32,I10,-1) -> 1.241589272 | J57: =PV(J42,J10,-1)/PV(J32,J10,-1) -> 1.227845654 | K57: =PV(K42,K10,-1)/PV(K32,K10,-1) -> 1.227845654
C58: Adjusted Nominal Cost for LCOE Calc | E58: USD/yr | G58: =G57*G54 -> 1862383.908 | H58: =H57*H54 -> 3364043.995 | I58: =I57*I54 -> 2586644.317 | J58: =J57*J54 -> 14719413.7 | K58: =K57*K54 -> 35693473.16
C60: Degradation Factor for Real Cost | E60: Factor | G60: =PV(G42,G10,-1)/PV(G44,G10,-1) -> 1.046313826 | H60: =PV(H42,H10,-1)/PV(H44,H10,-1) -> 1.098551113 | I60: =PV(I42,I10,-1)/PV(I44,I10,-1) -> 1.046313826 | J60: =PV(J42,J10,-1)/PV(J44,J10,-1) -> 1 | K60: =PV(K42,K10,-1)/PV(K44,K10,-1) -> 1
C61: Adjusted Real Cost of LOCE | E61: USD/yr | G61: =G54*G60 -> 1569470.738 | H61: =H54*H60 -> 3075943.117 | I61: =I54*I60 -> 2179820.47 | J61: =J54*J60 -> 11988000 | K61: =K54*K60 -> 29070000
B63: LCOE Calculation
C64: Nominal Capital Recovery | E64: USD/yr | G64: =G39 -> 8603441.72 | H64: =H39 -> 24730881.57 | I64: =I39 -> 11949224.61 | J64: =J39 -> 7458244.092 | K64: =K39 -> 7458244.092
C65: Nomina O&M Cost | E65: USD/yr | G65: =G58 -> 1862383.908 | H65: =H58 -> 3364043.995 | I65: =I58 -> 2586644.317 | J65: =J58 -> 14719413.7 | K65: =K58 -> 35693473.16
C66: Total Nominal Cost | E66: USD/yr | G66: =SUM(G64:G65) -> 10465825.63 | H66: =SUM(H64:H65) -> 28094925.57 | I66: =SUM(I64:I65) -> 14535868.93 | J66: =SUM(J64:J65) -> 22177657.79 | K66: =SUM(K64:K65) -> 43151717.25
C68: Total Production | E68: kWh | G68: =G6 -> 219000 | H68: =H6 -> 146000 | I68: 202777.7778 | J68: 146000 | K68: 365000
C69: LCOE - Nominal | E69: USD/unit | G69: =IFERROR(G66/G68,FALSE) -> 47.78915812 | H69: =IFERROR(H66/H68,FALSE) -> 192.430997 | I69: =IFERROR(I66/I68,FALSE) -> 71.68373717 | J69: =IFERROR(J66/J68,FALSE) -> 151.9017657 | K69: =IFERROR(K66/K68,FALSE) -> 118.2238829
C70: LCOE - Nominal | E70: USD/unit | G70: =G69*1000 -> 47789.15812 | H70: =H69*1000 -> 192430.997 | I70: =I69*1000 -> 71683.73717 | J70: =J69*1000 -> 151901.7657 | K70: =K69*1000 -> 118223.8829
C72: Capital Recovery - Real | E72: USD/yr | G72: =G51 -> 7250304.285 | H72: =H51 -> 22612898.36 | I72: =I51 -> 10069867.06 | J72: =J51 -> 6074252.141 | K72: =K51 -> 6074252.141
C73: O&M Cost | E73: USD/yr | G73: =G61 -> 1569470.738 | H73: =H61 -> 3075943.117 | I73: =I61 -> 2179820.47 | J73: =J61 -> 11988000 | K73: =K61 -> 29070000
C74: Total Cost | E74: USD/yr | G74: =SUM(G72:G73) -> 8819775.024 | H74: =SUM(H72:H73) -> 25688841.48 | I74: =SUM(I72:I73) -> 12249687.53 | J74: =SUM(J72:J73) -> 18062252.14 | K74: =SUM(K72:K73) -> 35144252.14
C76: Total Production | E76: Unit | G76: =G68 -> 219000 | H76: =H68 -> 146000 | I76: =I68 -> 202777.7778 | J76: =J68 -> 146000 | K76: =K68 -> 365000
C77: LCOE - Real | E77: USD/unit | G77: =IFERROR(G74/G76,FALSE) -> 40.27294531 | H77: =IFERROR(H74/H76,FALSE) -> 175.950969 | I77: =IFERROR(I74/I76,FALSE) -> 60.40941797 | J77: =IFERROR(J74/J76,FALSE) -> 123.7140558 | K77: =IFERROR(K74/K76,FALSE) -> 96.2856223
C78: LCOE - Real | E78: USD/unit | G78: =G77 -> 40.27294531 | H78: =H77 -> 175.950969 | I78: 60.40941797 | J78: 123.7140558 | K78: 96.2856223
C80: LCOE-Real | E80: USD/unit-year
B82: Financing Assumptions
C83: Max Debt to Capital | G83: 0.85 | H83: 0.85 | I83: 0.85 | J83: 0.85 | K83: 0.85
C84: Interest Rate | G84: 0.03 | H84: 0.03 | I84: 0.03 | J84: 0.03 | K84: 0.03
C85: Debt Tenor | G85: 20 | H85: 20 | I85: 20 | J85: 20 | K85: 20
C86: P50 DSCR | G86: 1.2 | H86: 1.2 | I86: 1.2 | J86: 1.2 | K86: 1.2
C87: P99 DSCR | G87: 1 | H87: 1 | I87: 1 | J87: 1 | K87: 1
C89: Target Equity IRR | G89: 0.08 | H89: 0.08 | I89: 0.08 | J89: 0.08 | K89: 0.08

Sheet Sensitivity
C1: Code Number | D1: 12
C2: Hours of Storage | D2: ='LCOE Analysis'!$E$11 -> 4
C3: Thermal Fuel Cost | D3: ='LCOE Analysis'!$I$1 -> 12
D4: Battery Cost USD/kWh | E4: Battery Life - Years | F4: Battery Degradation | G4: Battery O&M Cost | H4: Return on Equity | I4: Debt to Capital | J4: Round Trip Efficiency | K4: Depth of Discharge (Larger Battery) | L4: Solar Capital Cost | M4: Solar O&M Cost | N4: Solar Life | P4: Solar Plus Battery | Q4: Solar Plus Thermal | R4: Thermal
P5: ='LCOE Analysis'!K4 -> 142.7637869 | Q5: ='LCOE Analysis'!L4 -> 81.14837411 | R5: ='LCOE Analysis'!J4 -> 100.0773811
C6: Best Case | D6: 200 | E6: 20 | F6: 0.01 | G6: 0.01 | H6: 0.05 | I6: 0.8 | J6: 1 | K6: 1 | L6: 600 | M6: 7 | N6: 35 | O6: 1 | P6: 41.58302357 | Q6: 57.85431391 | R6: 93.68996673
C7: Higher Battery Cost | D7: 350 | E7: 20 | F7: 0.01 | G7: 0.01 | H7: 0.05 | I7: 0.8 | J7: 1 | K7: 1 | L7: 600 | M7: 7 | N7: 35 | O7: 2 | P7: 56.32377048 | Q7: 57.85431391 | R7: 93.68996673
C8: Longer Battery Life | D8: 350 | E8: 9 | F8: 0.01 | G8: 0.01 | H8: 0.05 | I8: 0.8 | J8: 1 | K8: 1 | L8: 600 | M8: 7 | N8: 35 | O8: 3 | P8: 80.41812423 | Q8: 57.85431391 | R8: 93.68996673
C9: Higher Degradation | D9: 350 | E9: 9 | F9: 0.02 | G9: 0.01 | H9: 0.05 | I9: 0.8 | J9: 1 | K9: 1 | L9: 600 | M9: 7 | N9: 35 | O9: 4 | P9: 83.27454249 | Q9: 57.85431391 | R9: 93.68996673
C10: Higher Battery O&M | D10: 350 | E10: 9 | F10: 0.02 | G10: 0.02 | H10: 0.05 | I10: 0.8 | J10: 1 | K10: 1 | L10: 600 | M10: 7 | N10: 35 | O10: 5 | P10: 87.5052031 | Q10: 57.85431391 | R10: 93.68996673
C11: Higher Return | D11: 350 | E11: 9 | F11: 0.02 | G11: 0.02 | H11: 0.1 | I11: 0.8 | J11: 1 | K11: 1 | L11: 600 | M11: 7 | N11: 35 | O11: 6 | P11: 93.52719972 | Q11: 61.12865222 | R11: 95.58696742
C12: Lower Debt | D12: 350 | E12: 9 | F12: 0.02 | G12: 0.02 | H12: 0.1 | I12: 0.5 | J12: 1 | K12: 1 | L12: 600 | M12: 7 | N12: 35 | O12: 7 | P12: 107.4613095 | Q12: 68.91649517 | R12: 100.0773811
C13: Lower Efficiency | D13: 350 | E13: 9 | F13: 0.02 | G13: 0.02 | H13: 0.1 | I13: 0.5 | J13: 0.8 | K13: 1 | L13: 600 | M13: 7 | N13: 35 | O13: 8 | P13: 111.3710881 | Q13: 68.91649517 | R13: 100.0773811
C14: Depth of Discharge | D14: 350 | E14: 9 | F14: 0.02 | G14: 0.02 | H14: 0.1 | I14: 0.5 | J14: 0.8 | K14: 0.9 | L14: 600 | M14: 7 | N14: 35 | O14: 9 | P14: 113.5431872 | Q14: 68.91649517 | R14: 100.0773811
C15: Higher Solar Cost | D15: 350 | E15: 9 | F15: 0.02 | G15: 0.02 | H15: 0.1 | I15: 0.5 | J15: 0.8 | K15: 0.9 | L15: 850 | M15: 7 | N15: 35 | O15: 10 | P15: 127.0661596 | Q15: 74.57727428 | R15: 100.0773811
C16: Higher Solar O&M | D16: 350 | E16: 9 | F16: 0.02 | G16: 0.02 | H16: 0.1 | I16: 0.5 | J16: 0.8 | K16: 0.9 | L16: 850 | M16: 15 | N16: 35 | O16: 11 | P16: 132.6718422 | Q16: 76.92383911 | R16: 100.0773811
C17: Shorter Solar Life | D17: 350 | E17: 9 | F17: 0.02 | G17: 0.02 | H17: 0.1 | I17: 0.5 | J17: 0.8 | K17: 0.9 | L17: 850 | M17: 15 | N17: 20 | O17: 12 | P17: 142.7637869 | Q17: 81.14837411 | R17: 100.0773811
C19: =INDEX(C6:C17,$D$1) -> Shorter Solar Life | D19: =INDEX(D6:D17,$D$1) -> 350 | E19: =INDEX(E6:E17,$D$1) -> 9 | F19: =INDEX(F6:F17,$D$1) -> 0.02 | G19: =INDEX(G6:G17,$D$1) -> 0.02 | H19: =INDEX(H6:H17,$D$1) -> 0.1 | I19: =INDEX(I6:I17,$D$1) -> 0.5 | J19: =INDEX(J6:J17,$D$1) -> 0.8 | K19: =INDEX(K6:K17,$D$1) -> 0.9 | L19: =INDEX(L6:L17,$D$1) -> 850 | M19: =INDEX(M6:M17,$D$1) -> 15 | N19: =INDEX(N6:N17,$D$1) -> 20
C22: Best Case | D22: =P6 -> 41.58302357
C23: =C7 -> Higher Battery Cost | D23: =P7-P6 -> 14.74074691
C24: Shorter Battery Life | D24: =P8-P7 -> 24.09435375
C25: =C9 -> Higher Degradation | D25: 2.85641826
C26: Higher Battery O&M | D26: 4.230660607
C27: Higher Return | D27: 6.021996627
C28: Lower Debt | D28: 13.93410981
C29: Lower Efficiency | D29: 3.909778523
C30: Depth of Discharge | D30: 2.17209918
C31: Higher Solar Cost | D31: 13.52297232
C32: Higher Solar O&M | D32: 5.605682641
C33: Shorter Solar Life | D33: 10.09194473
C34: Worst Case | D34: =P17 -> 142.7637869
